Cogmind - Beta 15 @@@ ROGUE MODE // 2025.10.08 @ 12:35:53 Player: DietSnapple Result: Destroyed by S-27 Virus with Autogun Performance ------------- Evolutions (5) 2500 Regions Visited (14) 2800 Robots Destroyed (74) 370 Value Destroyed (1912) 1912 Prototype IDs (6) 120 Alien Tech Used (0) 0 Bonus (923) 923 TOTAL SCORE: 8625 Bonus ------- High Alert Combat Kills 23 Follower Combat Kills 100 Entered Garrisons 200 Met Imprinter 300 Was Imprinted 300 Cogmind --------- Core Integrity 0/1000 Matter 300/300 Energy 97/100 System Corruption 1% Temperature Cool (0) Movement Core (50) Location -5/Garrison Parts ------- > --- POWER (1) -------- (None) > --- PROPULSION (5) --- (None) > --- UTILITY (9) ------ Makeshift System Shield > --- WEAPON (2) ------- (None) > --- INVENTORY (5) ---- Ion Engine Peak State ------------ > --- POWER ------------ Neutrino Core > --- PROPULSION ------- Xenon Bombardment Thruster Xenon Bombardment Thruster Xenon Bombardment Thruster Xenon Bombardment Thruster Field Propulsion Drive > --- UTILITY ---------- IFF Parser 0b10 Decoder Chip [Skirmisher] Advanced ECM Suite Phase Shifter Hacking Suite Hacking Suite Hacking Suite Makeshift System Shield Hacking Drone Bay > --- WEAPON ----------- Makeshift Laser > --- INVENTORY -------- Ion Engine Neutrino Core Cesium-ion Thruster [Rating: 74] Favorites ----------- Power Light Nuclear Core Engine Light Deuterium Engine Power Core Light Nuclear Core Propulsion Xenon Bombardment Thruster Treads Light Treads Hover Unit Airjet Flight Unit Xenon Bombardment Thruster Utility Hacking Suite Device Advanced ECM Suite Storage Small Storage Unit Processor 0b10 Decoder Chip [Skirmisher] Hackware Hacking Suite Protection Layered Light Armor Plating Weapon Assault Rifle Energy Gun Makeshift Laser Ballistic Gun Assault Rifle Impact Weapon Heavy Flail Slashing Weapon Katana Piercing Weapon Spear Build | -11 -10 -10 -10 -8 -7 -7 -7 -6 -6 -6 -6 -5 -5 -5 ------- Run | Yrd Mat Min Sub Mat Fac Low Low Fac Low Low Zio Pro Fac Gar Slots Evolved 10 | . . . . 4 2 . . 2 . . . . 2 . Power . | . . . . . . . . . . . . . . . Propulsion 3 | . . . . 2 . . . 1 . . . . . . Utility 7 | . . . . 2 2 . . 1 . . . . 2 . Weapon . | . . . . . . . . . . . . . . . Parts Attached 103 | 6 7 1 1 36 25 2 3 4 3 . 1 1 8 5 Power 15 | 1 2 1 . 6 2 . . . 2 . . . 1 . Engine 9 | 1 1 1 . 5 1 . . . . . . . . . Core 6 | . 1 . . 1 1 . . . 2 . . . 1 . Reactor . | . . . . . . . . . . . . . . . Propulsion 43 | 2 2 . 1 14 14 1 . 1 . . . 1 3 4 Treads 7 | 2 2 . 1 2 . . . . . . . . . . Leg . | . . . . . . . . . . . . . . . Wheel . | . . . . . . . . . . . . . . . Hover 3 | . . . . 3 . . . . . . . . . . Flight 33 | . . . . 9 14 1 . 1 . . . 1 3 4 Utility 30 | 1 1 . . 10 8 1 . 3 1 . 1 . 4 . Device 12 | . 1 . . 2 5 1 . 1 . . 1 . 1 . Storage 3 | 1 . . . 1 . . . 1 . . . . . . Processor 3 | . . . . . . . . . 1 . . . 2 . Hackware 8 | . . . . 3 3 . . 1 . . . . 1 . Protection 4 | . . . . 4 . . . . . . . . . . Artifact . | . . . . . . . . . . . . . . . Weapon 15 | 2 2 . . 6 1 . 3 . . . . . . 1 Energy Gun 4 | . . . . 1 1 . 1 . . . . . . 1 Energy Cannon . | . . . . . . . . . . . . . . . Ballistic Gun 5 | 2 2 . . 1 . . . . . . . . . . Ballistic Cannon . | . . . . . . . . . . . . . . . Launcher . | . . . . . . . . . . . . . . . Special Weapon . | . . . . . . . . . . . . . . . Impact Weapon 2 | . . . . 2 . . . . . . . . . . Slashing Weapon 3 | . . . . 2 . . 1 . . . . . . . Piercing Weapon 1 | . . . . . . . 1 . . . . . . . Special Melee Weapon . | . . . . . . . . . . . . . . . Unidentified Prototypes 4 | . . . . 2 . . . . . . 1 . 1 . Parts Lost 45 | . . 1 1 8 14 . . . . . . 2 9 10 Power 6 | . . 1 . 2 1 . . . . . . . 1 1 Propulsion 23 | . . . 1 5 6 . . . . . . 1 4 6 Utility 11 | . . . . 1 5 . . . . . . . 3 2 Weapon 5 | . . . . . 2 . . . . . . 1 1 1 Highest Loss Streak 9 | . . 1 1 2 4 . . . . . . 2 9 9 To Critical Strikes 2 | . . . 1 . . . . . . . . . . 1 Average Backups 5 | 1 6 8 6 4 4 4 5 4 4 5 5 5 2 2 Power . | . . . . . . 1 1 1 1 1 1 1 1 1 Propulsion 1 | . 3 3 1 1 1 2 2 1 1 1 1 . . . Utility . | . . 1 1 . . . . . 1 2 2 3 . . Weapon 1 | . 1 4 3 2 1 . . . . . . . . . Tool/Special . | . . . . . . . . . . . . . . . Unused Backups 11 | . 4 . 2 3 . . . . . . 1 . . 1 Power 1 | . . . . . . . . . . . . . . 1 Propulsion 5 | . 3 . 1 1 . . . . . . . . . . Utility . | . . . . . . . . . . . . . . . Weapon 4 | . 1 . 1 2 . . . . . . . . . . Tool/Special 1 | . . . . . . . . . . . 1 . . . Average Slot Usage (%) 84 | . 95 98 52 69 85 84 96 96 99 100 99 98 78 29 Engine 3 | . 5 11 7 4 3 . . . . . . . . . Core 4 | . 8 . . 1 3 7 7 6 6 6 6 6 3 . Treads 9 | . 28 28 14 2 . . . . . . . . . . Flight 18 | . . . . 24 29 30 30 31 33 33 33 31 21 10 Device 8 | . 9 14 7 2 6 15 15 11 13 13 12 13 17 . Storage 4 | . 14 14 7 1 . . . 1 . . . . . . Processor 1 | . . . . . . . . . 5 6 6 6 5 . Hackware 14 | . . . . 12 27 30 30 31 26 26 26 26 22 16 Protection 1 | . . . . 5 4 . . . . . . . . . Energy Gun 2 | . . . . . 4 . 5 6 6 6 6 6 3 1 Ballistic Gun 9 | . 28 28 14 1 . . . . . . . . . . Slashing Weapon 2 | . . . . 9 5 . 4 . . . . . . . Piercing Weapon 1 | . . . . . . . . 6 6 6 6 5 . . Peak Build Rating 74 | 6 14 14 12 31 49 38 46 56 61 61 65 62 74 20 Average Rating 29 | 4 9 11 6 20 38 38 44 53 58 61 61 60 60 15 On Entrance 32 | . 6 14 12 . 31 38 38 46 56 61 61 62 54 11 Naked Turns 162 | . . . 150 12 . . . . . . . . . . Heaviest Build 22 | 14 17 15 15 15 18 10 14 14 22 22 22 22 22 3 Greatest Support 46 | 40 46 46 46 45 24 23 23 29 29 29 29 29 31 17 Greatest Overweight (x) 2 | . . . . 2 . . . . . . . . . . Average Overweight (x) . | . . . . . . . . . . . . . . . Largest Inventory Capacity 8 | 8 8 8 8 8 5 5 5 5 5 5 5 5 5 5 Average Capacity 6 | 6 8 8 6 5 5 5 5 5 5 5 5 5 5 5 Most Carried 8 | 4 8 8 8 7 5 5 5 5 5 5 5 5 4 4 Average Carried 5 | 2 6 8 6 4 4 4 4 3 4 5 5 4 2 2 Final Capacity 8 | 8 8 8 5 5 5 5 5 5 5 5 5 5 5 5 Final Carried 8 | 4 8 8 5 5 4 5 5 4 5 5 5 5 4 1 Class Distribution -------------------- 53% | Hacker-Sprinter 38% | Mutant 5% | Hacker-Mutant Dominant Class ---------------- Mutant | -10/Materials Mutant | -10/Mines Mutant | -10/Subcaves Hacker-Sprinter | -8/Materials Hacker-Sprinter | -7/Factory Hacker-Sprinter | -7/Lower Caves Hacker-Sprinter | -7/Lower Caves Hacker-Sprinter | -6/Factory Hacker-Sprinter | -6/Lower Caves Hacker-Sprinter | -6/Lower Caves Hacker-Sprinter | -6/Zion Hacker-Sprinter | -5/Proximity Caves Hacker-Sprinter | -5/Factory Hacker-Sprinter | -5/Garrison Resources | -11 -10 -10 -10 -8 -7 -7 -7 -6 -6 -6 -6 -5 -5 -5 ----------- Run | Yrd Mat Min Sub Mat Fac Low Low Fac Low Low Zio Pro Fac Gar Matter Collected 1676 | 208 396 27 7 506 282 20 30 . 60 10 . 30 23 77 Remotely . | . . . . . . . . . . . . . . . Salvage Created 2493 | . 494 128 . 1150 644 . . . 54 . . . 23 . Parts 162 | . 37 10 . 58 47 . . . 7 . . . 3 . Haulers Intercepted 7 | . . . . 5 2 . . . . . . . . . Recyclers Shooed 1 | . . . . 1 . . . . . . . . . . Parts Field Recycled . | . . . . . . . . . . . . . . . Retrieved Matter . | . . . . . . . . . . . . . . . Parts Self-Destructed 16 | . . . 3 . . 1 6 . 6 . . . . . Prevented . | . . . . . . . . . . . . . . . Kills | -11 -10 -10 -10 -8 -7 -7 -7 -6 -6 -6 -6 -5 -5 -5 ------- Run | Yrd Mat Min Sub Mat Fac Low Low Fac Low Low Zio Pro Fac Gar Combat Hostiles Destroyed 52 | . 15 5 . 21 10 . . . 1 . . . . . Melee 28 | . . . . 19 8 . . . 1 . . . . . Guns 23 | . 15 5 . 1 2 . . . . . . . . . Classes Destroyed 10 | . 4 . . 3 2 . . . 1 . . . . . Worker 3 | . . . . 2 . . . . . . . . 1 . Builder 2 | . . . . . 2 . . . . . . . . . Hauler 7 | . . . . 5 2 . . . . . . . . . Operator 6 | . 1 . . 1 4 . . . . . . . . . Watcher 4 | . 1 . . 2 1 . . . . . . . . . Swarmer 20 | . 7 3 . 7 3 . . . . . . . . . Grunt 26 | . 8 2 . 10 6 . . . . . . . . . Sentry 4 | . . . . 4 . . . . . . . . . . Hunter 1 | . . . . . . . . . 1 . . . . . Programmer 1 | . . . . . 1 . . . . . . . . . Best Kill Streak 7 | . 3 3 . 7 3 . . . 1 . . . 1 . Combat Bots Only 7 | . 3 3 . 7 3 . . . 1 . . . . . Max Kills in Single Turn 1 | . 1 1 . 1 1 . . . 1 . . . 1 . Gunslinging . | . . . . . . . . . . . . . . . Exploded . | . . . . . . . . . . . . . . . Melee 1 | . . . . 1 1 . . . 1 . . . . . Uniques/NPCs Destroyed . | . . . . . . . . . . . . . . . Combat | -11 -10 -10 -10 -8 -7 -7 -7 -6 -6 -6 -6 -5 -5 -5 -------- Run | Yrd Mat Min Sub Mat Fac Low Low Fac Low Low Zio Pro Fac Gar Hostile Shots Fired 634 | . 67 30 14 127 232 . . . 15 . . 10 41 98 Missed 259 | . 16 8 6 42 109 . . . 8 . . 3 22 45 Hits 375 | . 51 22 8 85 123 . . . 7 . . 7 19 53 Melee 14 | . . . . . 1 . . . . . . 1 12 . Projectile 361 | . 51 22 8 85 122 . . . 7 . . 6 7 53 AOE 1 | . . . . . . . . . . . . . 1 . Critical Strikes 16 | . . 2 1 6 1 . . . . . . . 5 1 Damage Taken 5202 | . 495 254 164 1052 1268 . . . 111 . . 178 617 1063 Core 1620 | . 32 35 . 314 164 . . . 15 . . 49 188 823 Absorbed by Shields 125 | . . . . 100 21 . . . . . . . . 4 Regen/Repaired (Parts) 16 | . . . . 16 . . . . . . . . . . Core Remaining (%) 76 | 100 . . 73 42 . . 76 . . . . 92 . . Volleys Fired 74 | . 44 15 . 7 6 . . . . . . . 2 . Largest 2 | . 2 2 . 1 2 . . . . . . . 1 . Hottest 150 | . 46 46 . 23 100 . . . . . . . 150 . Shots Fired 139 | . 88 30 . 7 12 . . . . . . . 2 . Gun 139 | . 88 30 . 7 12 . . . . . . . 2 . Cannon . | . . . . . . . . . . . . . . . Launcher . | . . . . . . . . . . . . . . . Special . | . . . . . . . . . . . . . . . Kinetic 125 | . 88 30 . 7 . . . . . . . . . . Thermal 2 | . . . . . . . . . . . . . 2 . Explosive . | . . . . . . . . . . . . . . . Electromagnetic 12 | . . . . . 12 . . . . . . . . . Robot Hit Streak 10 | . 8 10 . 5 8 . . . . . . . 1 . Robot Miss Streak 3 | . 3 2 . 3 1 . . . . . . . 1 . Penetration Max . | . . . . . . . . . . . . . . . Secondary Targets 4 | . 3 1 . . . . . . . . . . . . Max Gunslinging Chain 1 | . 1 1 . . . . . . . . . . . . Shots Hit Robots 222 | . 60 23 . 84 53 . . . 1 . . . 1 . Core Hits 87 | . 25 6 . 28 25 . . . 1 . . . 2 . Critical Kills 1 | . 1 . . . . . . . . . . . . . Critical Parts Destroyed 1 | . . . . 1 . . . . . . . . . . Critical Strikes 16 | . 1 . . 8 7 . . . . . . . . . Destroy 1 | . 1 . . . . . . . . . . . . . Smash 1 | . . . . 1 . . . . . . . . . . Sever 14 | . . . . 7 7 . . . . . . . . . Melee Attacks 157 | . . . . 98 58 . . . 1 . . . . . Impact 13 | . . . . 13 . . . . . . . . . . Slashing 143 | . . . . 85 58 . . . . . . . . . Piercing 1 | . . . . . . . . . 1 . . . . . Sneak Attacks 18 | . . . . 11 6 . . . 1 . . . . . Combat Hostiles 1 | . . . . . . . . . 1 . . . . . Follow-up Attacks 6 | . . . . 6 . . . . . . . . . . Damage Inflicted 6496 | . 796 353 . 3284 1926 . . . 82 . . . 55 . Guns 1437 | . 796 353 . 53 199 . . . . . . . 36 . Cannons . | . . . . . . . . . . . . . . . Explosions . | . . . . . . . . . . . . . . . Melee 5040 | . . . . 3231 1727 . . . 82 . . . . . Ramming 19 | . . . . . . . . . . . . . 19 . Kinetic 1202 | . 796 353 . 53 . . . . . . . . . . Thermal 36 | . . . . . . . . . . . . . 36 . Explosive . | . . . . . . . . . . . . . . . Electromagnetic 199 | . . . . . 199 . . . . . . . . . Impact 637 | . . . . 637 . . . . . . . . . . Slashing 4321 | . . . . 2594 1727 . . . . . . . . . Piercing 82 | . . . . . . . . . 82 . . . . . Highest Corruption 3 | . 1 1 1 . 3 3 3 . . . . 3 1 1 Average Corruption 1 | . 1 1 1 . 2 3 3 . . . . 3 1 1 Corruption Purged . | . . . . . . . . . . . . . . . Corruption Blocked . | . . . . . . . . . . . . . . . Effects 25 | . 7 1 1 . 9 5 1 . . . . . . 1 Message Errors 7 | . 1 . . . 3 2 1 . . . . . . . Matter Fused 5 | . 2 1 . . 2 . . . . . . . . . Heat Flow Errors 3 | . 1 . . . 2 . . . . . . . . . Energy Discharges 3 | . 2 . . . . 1 . . . . . . . . Parts Fused 1 | . . . . . . . . . . . . . . 1 Data Loss (minor) 1 | . . . . . 1 . . . . . . . . . Data Loss (major) 4 | . . . 1 . 1 2 . . . . . . . . Alerts 1 | . 1 . . . . . . . . . . . . . Overload Shots 2 | . . . . . . . . . . . . . 2 . Overflow Damage 415 | . . . . 280 135 . . . . . . . . . Projectiles . | . . . . . . . . . . . . . . . Explosions . | . . . . . . . . . . . . . . . Melee 415 | . . . . 280 135 . . . . . . . . . Knockbacks 3 | . . . . 3 . . . . . . . . . . Impact 3 | . . . . 3 . . . . . . . . . . Kinetic . | . . . . . . . . . . . . . . . Secondary . | . . . . . . . . . . . . . . . Self-Inflicted Damage 9 | . . . . . . . . . . . . . 9 . Shots . | . . . . . . . . . . . . . . . Rammed 4 | . . . . . . . . . . . . . 4 . Targets Rammed 4 | . . . . . . . . . . . . . 4 . Kicked . | . . . . . . . . . . . . . . . Crushed . | . . . . . . . . . . . . . . . Highest Temperature 267 | . 198 22 . 208 267 . . . 11 . . . 204 . Average Temperature 91 | . 70 7 . 93 102 . . . 5 . . . 97 . Received Heat Transfer 1221 | . 156 99 48 483 357 . . . 18 . . . 18 42 Effects 1 | . . . . 1 . . . . . . . . . . Energy Bleed 1 | . . . . 1 . . . . . . . . . . Siege Activations . | . . . . . . . . . . . . . . . Martial Activations . | . . . . . . . . . . . . . . . Shielding Activations . | . . . . . . . . . . . . . . . Robots Disrupted . | . . . . . . . . . . . . . . . Combat Hostiles . | . . . . . . . . . . . . . . . Robots Corrupted 1 | . . . . 1 . . . . . . . . . . Combat Hostiles 1 | . . . . 1 . . . . . . . . . . Parts Fried 3 | . . . . 1 2 . . . . . . . . . Impact Corruptions 5 | . . . . 5 . . . . . . . . . . Robots Melted . | . . . . . . . . . . . . . . . Combat Hostiles . | . . . . . . . . . . . . . . . Parts Melted . | . . . . . . . . . . . . . . . Heat Transferred 50 | . . . . . . . . . . . . . 50 . Parts Sabotaged . | . . . . . . . . . . . . . . . Parts Stolen . | . . . . . . . . . . . . . . . Parts Stripped . | . . . . . . . . . . . . . . . Power Chain Reactions . | . . . . . . . . . . . . . . . Alert | -11 -10 -10 -10 -8 -7 -7 -7 -6 -6 -6 -6 -5 -5 -5 ------- Run | Yrd Mat Min Sub Mat Fac Low Low Fac Low Low Zio Pro Fac Gar Maximum Alert Level 2 | . . . . 2 1 . . . . . . . . . Low Security (%) 75 | 100 100 100 . 69 21 . . 100 . . . . 100 100 Level 1 20 | . . . . 15 78 . . . . . . . . . Level 2 3 | . . . . 15 . . . . . . . . . . Level 3 . | . . . . . . . . . . . . . . . Level 4 . | . . . . . . . . . . . . . . . Level 5 . | . . . . . . . . . . . . . . . High Security . | . . . . . . . . . . . . . . . Max Security . | . . . . . . . . . . . . . . . Peak Influence 435 | . 100 85 . 435 397 . . 23 . . . . 20 141 Initial 194 | . . 5 . . 194 . . 18 . . . . . 3 Average 107 | . 26 46 . 155 257 . . 15 . . . . 3 52 Influence Increases 2475 | . 427 150 . 881 625 . . 15 75 . . . 82 220 Destroy 0b10 Robot/C 1140 | . 300 100 . 420 200 . . . 20 . . . . 100 Destroy 0b10 Robot/NC 105 | . 10 . . 50 40 . . . . . . . 5 . Destroy Leader 220 | . 52 20 . 104 34 . . . 10 . . . . . Allied During Kill 34 | . . . . . . . . . . . . . . 34 Successful Hack 117 | . 5 . . 35 77 . . . . . . . . . Disable Machine 30 | . 15 . . 15 . . . . . . . . . . Destroy Structure 19 | . . . . 2 4 . . . . . . . 2 11 Partial Spotted 150 | . . . . 45 45 . . 15 . . . . 15 30 Lose Combat Pursuer 660 | . 45 30 . 210 225 . . . 45 . . . 60 45 Influence Decreases 2432 | . 413 89 75 452 755 201 69 21 98 . . . 77 182 Entered New Map 435 | . . 9 39 . 235 111 19 11 9 . . . . 2 Time Decay 1545 | . 413 70 36 372 380 90 50 10 89 . . . 35 . Lost Part 362 | . . 10 . 80 140 . . . . . . . 32 100 Lost Ally 90 | . . . . . . . . . . . . . 10 80 Squads Dispatched 18 | . 2 . . 5 9 . . 1 . . . . 1 . Investigation 6 | . 1 . . 1 4 . . . . . . . . . Extermination 2 | . . . . . 2 . . . . . . . . . Reinforcement 8 | . 1 . . 2 3 . . 1 . . . . 1 . Assault . | . . . . . . . . . . . . . . . Garrison 2 | . . . . 2 . . . . . . . . . . Intercept . | . . . . . . . . . . . . . . . Searches Triggered . | . . . . . . . . . . . . . . . Construction Impeded . | . . . . . . . . . . . . . . . Haulers Reinforced . | . . . . . . . . . . . . . . . Active Scanning Responses . | . . . . . . . . . . . . . . . Cargo Convoy Interrupts . | . . . . . . . . . . . . . . . Stealth | -11 -10 -10 -10 -8 -7 -7 -7 -6 -6 -6 -6 -5 -5 -5 --------- Run | Yrd Mat Min Sub Mat Fac Low Low Fac Low Low Zio Pro Fac Gar Distress Signals 12 | . 3 . . 7 1 . . . . . . . 1 . Communications Jammed 2 | . . . . . 2 . . . . . . . . . Distress Signals 2 | . . . . . 2 . . . . . . . . . Times Spotted 175 | . 31 5 3 50 39 . . . 6 . . 4 17 20 Peak Tracking Total 14 | . 5 2 2 9 7 . . . 3 . . 4 14 12 Tactical Retreats 27 | . 3 1 2 6 8 . . . 2 . . . 2 3 Traps | -11 -10 -10 -10 -8 -7 -7 -7 -6 -6 -6 -6 -5 -5 -5 ------- Run | Yrd Mat Min Sub Mat Fac Low Low Fac Low Low Zio Pro Fac Gar Traps Triggered 10 | . 3 . . 3 . . . . . . . . . 4 Indirectly . | . . . . . . . . . . . . . . . Trap Hack Attempts . | . . . . . . . . . . . . . . . Triggered . | . . . . . . . . . . . . . . . Disarmed . | . . . . . . . . . . . . . . . Reprogrammed . | . . . . . . . . . . . . . . . Reused . | . . . . . . . . . . . . . . . Traps Extracted . | . . . . . . . . . . . . . . . Installed . | . . . . . . . . . . . . . . . Triggered . | . . . . . . . . . . . . . . . Machines | -11 -10 -10 -10 -8 -7 -7 -7 -6 -6 -6 -6 -5 -5 -5 ---------- Run | Yrd Mat Min Sub Mat Fac Low Low Fac Low Low Zio Pro Fac Gar Machines Disabled 2 | . 1 . . 1 . . . . . . . . . . Max in Single Turn 1 | . 1 . . 1 . . . . . . . . . . Machines Repaired . | . . . . . . . . . . . . . . . Machines Dismantled . | . . . . . . . . . . . . . . . Machines Sabotaged . | . . . . . . . . . . . . . . . Overloaded Fab Kills . | . . . . . . . . . . . . . . . Hacking | -11 -10 -10 -10 -8 -7 -7 -7 -6 -6 -6 -6 -5 -5 -5 --------- Run | Yrd Mat Min Sub Mat Fac Low Low Fac Low Low Zio Pro Fac Gar Machines Accessed 22 | . 3 . 1 8 8 . 1 . . . . . 1 . Terminals 13 | . 3 . . 5 5 . . . . . . . . . Fabricators 3 | . . . . . 3 . . . . . . . . . Repair Stations 1 | . . . . 1 . . . . . . . . . . Recycling Units 1 | . . . . 1 . . . . . . . . . . Scanalyzers 1 | . . . . 1 . . . . . . . . . . Garrison Access 1 | . . . . . . . . . . . . . 1 . Total Hacks 57 | . 6 . 3 26 19 . 1 . . . . . 2 . Successful 36 | . 4 . 3 13 13 . 1 . . . . . 2 . Failed 21 | . 2 . . 13 6 . . . . . . . . . Catastrophic 2 | . 1 . . 1 . . . . . . . . . . Database Lockouts . | . . . . . . . . . . . . . . . Manual 40 | . 4 . . 15 10 . . . . . 2 . 6 3 Terminals 35 | . 6 . . 16 13 . . . . . . . . . Fabricators 6 | . . . . . 6 . . . . . . . . . Repair Stations 4 | . . . . 4 . . . . . . . . . . Recycling Units 1 | . . . . 1 . . . . . . . . . . Scanalyzers 5 | . . . . 5 . . . . . . . . . . Garrison Access 2 | . . . . . . . . . . . . . 2 . Terminal Hacks 14 | . 2 . 3 4 4 . 1 . . . . . . . Record 5 | . 2 . 3 . . . . . . . . . . . Prototype ID Bank 1 | . . . . 1 . . . . . . . . . . Open Door 1 | . . . . . . . 1 . . . . . . . Branch Access Points 1 | . . . . 1 . . . . . . . . . . Fabricator Index 1 | . . . . . 1 . . . . . . . . . Transport Status 1 | . . . . 1 . . . . . . . . . . Assault Status 1 | . . . . . 1 . . . . . . . . . Recall Investigation 1 | . . . . . 1 . . . . . . . . . Hauler Manifests 1 | . . . . 1 . . . . . . . . . . Registered Components 1 | . . . . . 1 . . . . . . . . . Fabricator Hacks 6 | . . . . . 6 . . . . . . . . . Load Schematic 3 | . . . . . 3 . . . . . . . . . Build 3 | . . . . . 3 . . . . . . . . . Repair Station Hacks 3 | . . . . 3 . . . . . . . . . . Scan Component 2 | . . . . 2 . . . . . . . . . . Repair 1 | . . . . 1 . . . . . . . . . . Recycling Unit Hacks 1 | . . . . 1 . . . . . . . . . . Report Inventory 1 | . . . . 1 . . . . . . . . . . Scanalyzer 2 | . . . . 2 . . . . . . . . . . Insert Component 1 | . . . . 1 . . . . . . . . . . Analyze 1 | . . . . 1 . . . . . . . . . . Garrison Access Hacks 2 | . . . . . . . . . . . . . 2 . Unlock Access 1 | . . . . . . . . . . . . . 1 . Coupler Status 1 | . . . . . . . . . . . . . 1 . Unauthorized Hacks 8 | . 2 . . 3 3 . . . . . . . . . Terminals 8 | . 2 . . 3 3 . . . . . . . . . Assimilate 1 | . . . . . 1 . . . . . . . . . Botnet 4 | . 1 . . 1 2 . . . . . . . . . Operators 3 | . 1 . . 2 . . . . . . . . . . Fabricators . | . . . . . . . . . . . . . . . Repair Stations . | . . . . . . . . . . . . . . . Recycling Units . | . . . . . . . . . . . . . . . Scanalyzers . | . . . . . . . . . . . . . . . Garrison Access . | . . . . . . . . . . . . . . . Data Cores Recovered . | . . . . . . . . . . . . . . . Used . | . . . . . . . . . . . . . . . Hacking Detections 15 | . 2 . . 5 8 . . . . . . . . . Full Trace Events 6 | . . . . 2 4 . . . . . . . . . Feedback Events . | . . . . . . . . . . . . . . . Feedback Blocked 1 | . . . . 1 . . . . . . . . . . Robot Schematics Acquired . | . . . . . . . . . . . . . . . Robots Built . | . . . . . . . . . . . . . . . Authchips . | . . . . . . . . . . . . . . . Time . | . . . . . . . . . . . . . . . Total Robot Build Rating . | . . . . . . . . . . . . . . . Part Schematics Acquired 1 | . . . . 1 . . . . . . . . . . Parts Built 4 | . . . . . 4 . . . . . . . . . Authchips . | . . . . . . . . . . . . . . . Time 145 | . . . . . 145 . . . . . . . . . Total Part Build Rating 12 | . . . . . 12 . . . . . . . . . Parts Repaired 1 | . . . . 1 . . . . . . . . . . Time 32 | . . . . 32 . . . . . . . . . . Parts Recycled . | . . . . . . . . . . . . . . . Recycled Matter . | . . . . . . . . . . . . . . . Retrieved Matter . | . . . . . . . . . . . . . . . Retrieved Components . | . . . . . . . . . . . . . . . Parts Scanalyzed 1 | . . . . 1 . . . . . . . . . . Part Schematics Acquired 1 | . . . . 1 . . . . . . . . . . Parts Damaged . | . . . . . . . . . . . . . . . Bothacking | -11 -10 -10 -10 -8 -7 -7 -7 -6 -6 -6 -6 -5 -5 -5 ------------ Run | Yrd Mat Min Sub Mat Fac Low Low Fac Low Low Zio Pro Fac Gar Used RIF Installer . | . . . . . . . . . . . . . . . Robots Hacked . | . . . . . . . . . . . . . . . Non-combat . | . . . . . . . . . . . . . . . Combat . | . . . . . . . . . . . . . . . Robot Hacks Applied . | . . . . . . . . . . . . . . . Relay Couplers Released . | . . . . . . . . . . . . . . . Fabnet Peak Effective % . | . . . . . . . . . . . . . . . Robots Rewired . | . . . . . . . . . . . . . . . Allies Hacked . | . . . . . . . . . . . . . . . Hacks Repelled . | . . . . . . . . . . . . . . . Allies | -11 -10 -10 -10 -8 -7 -7 -7 -6 -6 -6 -6 -5 -5 -5 -------- Run | Yrd Mat Min Sub Mat Fac Low Low Fac Low Low Zio Pro Fac Gar Total Allies 9 | . . . . . 1 . . . . . 4 . . 4 Largest Group 4 | . . . . . . . . . . . 4 4 . 3 Highest-Rated Group 272 | . . . . . . . . . . . 159 159 . 272 Highest-Rated Ally 96 | . . . . . . . . . . . 41 41 . 96 Total Orders . | . . . . . . . . . . . . . . . Ally Attacks 19 | . . . . . . . . . . . . . . 19 Total Damage 692 | . . . . . . . . . . . . . . 692 Kills 5 | . . . . . . . . . . . . . . 5 Allies Corrupted . | . . . . . . . . . . . . . . . Allies Melted . | . . . . . . . . . . . . . . . Intel | -11 -10 -10 -10 -8 -7 -7 -7 -6 -6 -6 -6 -5 -5 -5 ------- Run | Yrd Mat Min Sub Mat Fac Low Low Fac Low Low Zio Pro Fac Gar Active Infowar (turns) 3426 | . 1048 159 166 . 390 193 115 21 340 60 481 231 222 . IFF 1273 | . . . . . . . . 3 340 60 477 231 162 . Traps 420 | . . . . . 94 193 115 18 . . . . . . Seismic 1373 | . 1048 159 166 . . . . . . . . . . . Decoding 1293 | . . . . . . . . . 299 60 481 231 222 . Jamming 296 | . . . . . 296 . . . . . . . . . ECM 20 | . . . . . . 1 . . 19 . . . . . Robot Analysis Total . | . . . . . . . . . . . . . . . Derelict Logs Recovered 7 | . . . 1 . . . . . 2 1 . 3 . . Drone Launches 1 | . . . . . . . . . . . . . 1 . Drone Recoveries . | . . . . . . . . . . . . . . . Decoded 0b10 Intel 5 | . . . . . . . . . . . . . 5 . Patrols 1 | . . . . . . . . . . . . . 1 . Reinforcements 2 | . . . . . . . . . . . . . 2 . Guards 2 | . . . . . . . . . . . . . 2 . Zionite Intel Received 1 | . . . . . . . . . . . . . 1 . Active Terminals 1 | . . . . . . . . . . . . . 1 . Exploration | -11 -10 -10 -10 -8 -7 -7 -7 -6 -6 -6 -6 -5 -5 -5 ------------- Run | Yrd Mat Min Sub Mat Fac Low Low Fac Low Low Zio Pro Fac Gar Turns Passed 5855 | 115 1515 159 316 1023 885 193 115 37 340 60 481 231 225 160 Spaces Moved 9682 | 66 771 67 404 1498 1561 656 375 115 1185 220 982 847 623 312 Core 369 | 2 . . 301 21 . . . . . . . . 13 32 Treads 1068 | 64 771 67 103 63 . . . . . . . . . . Legs . | . . . . . . . . . . . . . . . Wheels . | . . . . . . . . . . . . . . . Hover 79 | . . . . 79 . . . . . . . . . . Flight 8166 | . . . . 1335 1561 656 375 115 1185 220 982 847 610 280 Fastest Speed 14 | 50 160 160 50 28 14 29 29 27 27 27 27 26 27 26 Average Speed 44 | 156 160 160 78 37 28 29 29 27 27 27 27 26 31 33 Slowest Speed 200 | 160 160 160 160 200 34 29 29 29 27 27 27 29 50 50 Overloaded Moves 21 | . . . . . 21 . . . . . . . . . Propulsion Burnouts . | . . . . . . . . . . . . . . . Robots Hopped 37 | . . . . 11 7 1 . . . . . 1 17 . Potential Cave-ins . | . . . . . . . . . . . . . . . Cave-ins Triggered . | . . . . . . . . . . . . . . . Exploration Rate (%) 47 | 5 96 15 31 79 29 70 34 3 90 41 86 81 17 34 Regions Visited 14 Branch Regions 8 Pre-discovered Areas 4 | . . . 2 . . . . . 1 . . 1 . . Known Exits Taken 2 | . . . . . . . . . . . . 1 1 . Unknown Exits Taken 12 | 1 1 1 1 1 1 1 1 1 1 1 1 . . . Scrap Searched 12 | . . . . . . 3 2 . 2 1 2 2 . . Spaces Dug 6 | . . . . 2 4 . . . . . . . . . Terrain Destroyed 7 | . . . . 2 4 . . . . . . . 1 . Melee 6 | . . . . 2 4 . . . . . . . . . Projectile 1 | . . . . . . . . . . . . . 1 . AOE . | . . . . . . . . . . . . . . . Terrain Rammed . | . . . . . . . . . . . . . . . Walls Destroyed . | . . . . . . . . . . . . . . . Machines Disabled . | . . . . . . . . . . . . . . . Actions | -11 -10 -10 -10 -8 -7 -7 -7 -6 -6 -6 -6 -5 -5 -5 --------- Run | Yrd Mat Min Sub Mat Fac Low Low Fac Low Low Zio Pro Fac Gar Total 10853 | 75 970 88 404 1805 1889 656 379 119 1204 219 1197 852 632 364 Wait 730 | . 131 6 . 131 212 . . . 10 . 211 4 5 20 Move 9600 | 65 770 66 403 1475 1547 653 374 114 1184 219 981 844 593 312 Hop 31 | . . . . 11 6 1 . . . . . 1 12 . Pick Up 46 | 4 9 . . 14 14 . 1 . 2 . 1 1 . . Fast Attach 58 | 6 1 1 . 30 8 . 2 1 1 . 1 . 2 5 Attach 35 | . 1 . 1 10 12 . . 2 . . . . 6 3 Detach 20 | . . . . 12 1 . . 1 1 . . . 5 . Swap 31 | . 5 . . 5 10 2 1 1 2 . 1 1 3 . Drop 50 | . 9 . . 19 15 . 1 . 3 . 2 1 . . Fire 74 | . 44 15 . 7 6 . . . . . . . 2 . Melee 150 | . . . . 91 58 . . . 1 . . . . . Ram 4 | . . . . . . . . . . . . . 4 . Kick . | . . . . . . . . . . . . . . . Crush . | . . . . . . . . . . . . . . . Escape Stasis 24 | . . . . . . . . . . . . . . 24 Rewire . | . . . . . . . . . . . . . . . Trap . | . . . . . . . . . . . . . . . Miscellaneous . | . . . . . . . . . . . . . . . Route ------- -11/Scrapyard -10/Materials (discovered 4 exits: [*Mat x3] / [*Min]) -10/Mines -10/Subcaves -8/Materials (discovered 4 exits: *Fac x2 / *Sto x2) -7/Factory (discovered 4 exits: [*Fac x3] / [*Low]) -7/Lower Caves -7/Lower Caves -6/Factory -6/Lower Caves -6/Lower Caves -6/Zion -5/Proximity Caves -5/Factory -5/Garrison History --------- Turn | Location | Event 25 | -11/Scrapyard | Discovered new exit (range 16) 116 | -11/Scrapyard | Entered Materials 318 | -10/Materials | Build established: Mutant 342 | -10/Materials | Discovered new exit (range 10) 693 | -10/Materials | Discovered new exit (range 16) 716 | -10/Materials | Derelicts attacked the area 970 | -10/Materials | Discovered new exit (range 12) 1594 | -10/Materials | Discovered new exit (range 10) 1631 | -10/Materials | Entered Mines 1772 | -10/Mines | Discovered new exit (range 7) 1790 | -10/Mines | Entered Subcaves 1823 | -10/Subcaves | Learned location of Zion (-6) 1823 | -10/Subcaves | Met a Zionite searching for "candidates" 1829 | -10/Subcaves | Learned Materials emergency access door positions 1956 | -10/Subcaves | Released all parts (7) 2002 | -10/Subcaves | Discovered new exit (range 16) 2003 | -10/Subcaves | Shifting Twisted Machinery released Humpback 2006 | -10/Subcaves | Shifting Twisted Machinery released Sub. Monowheel 2035 | -10/Subcaves | Visited Clippyterm 2037 | -10/Subcaves | Learned location of Extension (-5) 2106 | -10/Subcaves | Entered Materials 2106 | -8/Materials | Evolved 4 slots: Propulsion x2, Utility x2 2496 | -8/Materials | Repaired VTOL Module 2525 | -8/Materials | Discovered new exit (range 5) 2585 | -8/Materials | Garrison activated, responded to threat 2737 | -8/Materials | Discovered new exit (range 8) 2772 | -8/Materials | Discovered new exit (range 10) 2925 | -8/Materials | Core integrity fell below 50% 2984 | -8/Materials | Destroyed 7 combat bots 3006 | -8/Materials | Discovered new exit (range 16) 3079 | -8/Materials | Garrison activated, responded to threat 3095 | -8/Materials | Identified exit to Storage 3129 | -8/Materials | Entered Factory 3129 | -7/Factory | Evolved 2 slots: Utility x2 3204 | -7/Factory | Discovered new exit (range 6) 3268 | -7/Factory | Build established: Hacker-Sprinter 3446 | -7/Factory | Discovered new exit (range 13) 3485 | -7/Factory | Fabricated Surge Thruster (x2) 3680 | -7/Factory | Fabricated Surge Thruster (x2) 3723 | -7/Factory | Discovered new exit (range 16) 3964 | -7/Factory | Discovered new exit (range 4) 3993 | -7/Factory | Lost 4 parts (3n1u) 4014 | -7/Factory | Entered Lower Caves 4168 | -7/Lower Caves | Encountered a Warlord checkpoint 4207 | -7/Lower Caves | Discovered new exit (range 4) 4207 | -7/Lower Caves | Spotted B-75 Beast 4207 | -7/Lower Caves | Entered another Lower Caves area 4208 | -7/Lower Caves | Encountered a Warlord checkpoint 4270 | -7/Lower Caves | Discovered new exit (range 16) 4308 | -7/Lower Caves | Found DCF Scrap (15 items) 4322 | -7/Lower Caves | Entered Factory 4322 | -6/Factory | Evolved 2 slots: Propulsion x1, Utility x1 4350 | -6/Factory | Discovered new exit (range 9) 4359 | -6/Factory | Entered Lower Caves 4422 | -6/Lower Caves | Learned Factory trap positions 4693 | -6/Lower Caves | Discovered new exit (range 7) 4699 | -6/Lower Caves | Entered another Lower Caves area 4730 | -6/Lower Caves | Encountered a Warlord checkpoint 4743 | -6/Lower Caves | Learned Factory machine intel 4748 | -6/Lower Caves | Discovered new exit (range 16) 4759 | -6/Lower Caves | Entered Zion 4771 | -6/Zion | Discovered new exit (range 15) 4786 | -6/Zion | Given A8's code to call for help 4888 | -6/Zion | Met Imprinter 4893 | -6/Zion | Imprinted 4895 | -6/Zion | Declared Zion's savior 5068 | -6/Zion | Given the Hacking Drone Bay 5070 | -6/Zion | Found Prototype Device 5070 | -6/Zion | Identified Hacking Drone Bay 5240 | -6/Zion | Entered Proximity Caves 5240 | -5/Proximity Caves | Accompanied by 4 allies 5326 | -5/Proximity Caves | Learned 4 Factory zone layouts 5438 | -5/Proximity Caves | Spotted B-75 Beast 5449 | -5/Proximity Caves | Identified exit to Factory 5460 | -5/Proximity Caves | Attracted the attention of an 0b10 checkpoint 5471 | -5/Proximity Caves | Entered Factory 5471 | -5/Factory | Evolved 2 slots: Utility x2 5473 | -5/Factory | Loaded intel: 109 trap records 5474 | -5/Factory | Loaded intel: 254 machine locations 5517 | -5/Factory | Found Prototype Processor 5517 | -5/Factory | Identified Exp. Targeting Computer 5554 | -5/Factory | Retrieved Zion intel report: Active Terminals 5695 | -5/Factory | Identified exit to Garrison 5696 | -5/Factory | Entered Garrison 5717 | -5/Garrison | Lost 9 parts (1p4n3u1w) 5719 | -5/Garrison | Spotted B-75 Beast 5730 | -5/Garrison | Triggered checkpoint 5730 | -5/Garrison | Found embedded Infiltrators 5792 | -5/Garrison | Triggered checkpoint 5798 | -5/Garrison | Triggered checkpoint 5800 | -5/Garrison | Enhanced Grunt warped into view, answering call for help 5805 | -5/Garrison | Enhanced Grunt warped into view, answering call for help 5812 | -5/Garrison | Triggered checkpoint 5841 | -5/Garrison | Spotted B-75 Beast 5841 | -5/Garrison | Spotted B-75 Beast 5847 | -5/Garrison | Core integrity fell below 50% 5851 | -5/Garrison | Core integrity fell below 20% 5854 | -5/Garrison | Lost 3 allies 5856 | -5/Garrison | Destroyed by S-27 Virus with Autogun Last Messages --------------- 05824_ A bubble of rippling energy engulfs the area. 05824_ Field strength at 83. 05824_ Field strength at 66. 05825_ Field strength at 49. 05826_ Field strength at 32. 05827_ Field strength at 15. 05828_ VTOL Module destroyed. 05828_ Stasis field depleted. 05829_ VTOL Module destroyed. 05831_ Cesium-ion Thruster destroyed. 05839_ VTOL Module destroyed. 05840_ Hacking Suite destroyed. 05841_ Knocked back. 05846_ B-75 Beast springs to life. 05850_ Knocked back. 05851_ Machine disabled. 05851_ Critical hit (Destroy). 05851_ Neutrino Core destroyed. 05852_ S-27 Virus destroyed. 05852_ Hacking Suite destroyed. Map ----- +----------------------------------------------------+ | ?????????????????????????????????????????????????? | | ?????????????????????????????????????????????????? | | ?????????????????????????????????????????????????? | | ?????????????????????????????????????????????????? | | ?????????????????????????????????????????????????? | | ?????????????????????????????????????????????????? | | ?????????????????????????????????????????????????? | | ????????# #################?????????????????????? | | ??????? #?????????????????????? | | ??????? #?????????????????????? | | ??????? #?????????????????????? | | ??????????????########## #?????????????????????? | | ???????????????????????# #?????????????????????? | | ???????????????????????# #?????????????????????? | | ???????????????????????# #?????????????????????? | | ???????????????????????# #?????????????????????? | | ?????###############???# #?????????????????????? | | ?????#""""" """ "##??# #?????????????????????? | | ?????#" """ """ ""#### #?????????????????##### | | ?????#"" ## ##????????????????# ^ | | ?????#"" ## +?????????????????# ^ | | ?????#"" * ## +?????????????????# ## | | ?????# ## #?????????????????# #? | | ?????# ##^ #?????????????????# #? | | ?????#"" ##^ ^#?????????????????# #? | | ?????#"" ## @ #?????????????????# #? | | ?????#"" ## #?????????????????# #? | | ?????# ! % ##s #?????###?????????# #? | | ?????# [%% ##s #######]#####""""## ## | | ?????#"" * %#sbs!=%[*%=!==]=/ # | | ?????#"" %l BB==%%=!!![*[%! %" | | ?????#"" BB * ]%!%=!!% % # | | ?????#" """ "" ""########;######%!/## ## # | | ?????#""""" """ "##??????### #### ## ## # | | ?????##?############??????????? + | | ????????????????????????????????# % | | ????????????????????????????????# | | ????????????????????????????????# | | ????????????????????????????????### ## ## # | | ??????????????????????????????????# ## ## # | | ??????????????????????????????????# # | | ??????????????????????????????????# # | | ??????????????????????????????????# # | | ??????????????????????????????????## ##""""## ## | | ???????????????????????????????????# #??????# #? | | ???????????????????????????????????# #??????# #? | | ???????????????????????????????????# #??????# #? | | ???????????????????????????????????# #??????? ?? | | ???????????????????????????????????# #??????? ?? | | ???????????????????????????????????# #??????? ?? | +----------------------------------------------------+ Best States ------------- Heat Dissipation 45 Coolant Potential 65 Energy Generation 19 Energy Capacity 360 Matter Stores 300 Matter Capacity 300 Sight Range 16 Terrain Scan Density 10 ECM Strength 2 Jamming Range 12 Armor Coverage 300 Phase Shifting 5 Evasion (%) 69 Recoil Reduction 2 Offensive Hacking 40 Defensive Hacking 21 Item Schematics ----------------- Surge Thruster | -8/Materials | Scanalyzed Robot Schematics ------------------ None Fabricated ------------ Surge Thruster | x2 | -7/Factory Surge Thruster | x2 | -7/Factory Repaired ---------- VTOL Module | 36% | -8/Materials Alien Tech Used ----------------- None Achievements -------------- Help From High Places Just What I Needed Leap Before You Look Whoosh! Challenges ------------ None Game ------ Seed ArmageddonSalvageHammer Manual? 0 Play Time 01:22:45 Cumulative 22.3 hours Start 2025.10.08 @ 11:11:02 End 2025.10.08 @ 12:35:53 Sessions 1 Manual Loads 0 Difficulty Rogue Special Mode None Game No. 62 Rogue 55 Adventurer 7 Explorer 0 Win Type - Total 0 Types 0/0/0/0/0/0/0/0/0/0 Lore% 5 Gallery% 21 Achievement% 21 Wizard Run 0 Options --------- Layout 0 ASCII 0 Keyboard 1 Movement Vi Keybinds 0 Fullscreen 1 Font 18/SmallcapsGlow Map View 112x50 Zoom Use 0% Tactical HUD 1 Map Filters NONE Filters NONE Steam 1 RUN: 2e85625d-e854-480b-8f93-aad491bc6438